[Event "NJSK 2026 Jeugd A"]
[Site "Helmond, Netherlands"]
[Date "2026.04.25"]
[Round "1.9"]
[White "Xu, Alex Z"]
[Black "Krylov, Philippe"]
[Result "0-1"]
[TimeControl "90min/40moves + 30min + 30sec/move"]
[WhiteTitle "-"]
[BlackTitle "-"]
[WhiteFideId "40114775"]
[BlackFideId "1082930"]
[WhiteElo "1965"]
[BlackElo "2183"]

1. e4 {[%clk 01:30:57]} {[%emt 00:00:02]} e6 {[%clk 01:30:32]} {[%emt
00:00:28]} 2. d4 {[%clk 01:31:07]} {[%emt 00:00:20]} d5 {[%clk 01:30:36]}
{[%emt 00:00:27]} 3. Nd2 {[%clk 01:31:23]} {[%emt 00:00:14]} Be7 {[%clk
01:29:43]} {[%emt 00:01:23]} 4. Bd3 {[%clk 01:31:28]} {[%emt 00:00:25]} c5
{[%clk 01:26:23]} {[%emt 00:03:49]} 5. dxc5 {[%clk 01:30:54]} {[%emt 00:01:04]}
Nf6 {[%clk 01:19:30]} {[%emt 00:07:23]} 6. Qe2 {[%clk 01:30:32]} {[%emt
00:00:52]} Bxc5 {[%clk 01:13:45]} {[%emt 00:06:15]} 7. exd5 {[%clk 01:28:20]}
{[%emt 00:02:42]} Qxd5 {[%clk 01:11:12]} {[%emt 00:03:03]} 8. Ngf3 {[%clk
01:24:58]} {[%emt 00:03:52]} Nc6 {[%clk 01:07:11]} {[%emt 00:04:32]} 9. Nb3
{[%clk 01:17:36]} {[%emt 00:07:51]} Be7 {[%clk 01:04:47]} {[%emt 00:02:54]} 10.
Bf4 {[%clk 01:07:51]} {[%emt 00:10:15]} Nb4 {[%clk 00:55:11]} {[%emt 00:10:06]}
11. Bb5+ {[%clk 00:56:41]} {[%emt 00:11:40]} Bd7 {[%clk 00:54:41]} {[%emt
00:00:58]} 12. Bxd7+ {[%clk 00:55:07]} {[%emt 00:02:06]} Qxd7 {[%clk 00:48:43]}
{[%emt 00:06:28]} 13. Rd1 {[%clk 00:47:35]} {[%emt 00:08:01]} Qa4 {[%clk
00:40:58]} {[%emt 00:08:16]} 14. Rd4 {[%clk 00:40:08]} {[%emt 00:07:56]} Qa6
{[%clk 00:37:32]} {[%emt 00:03:58]} 15. Qxa6 {[%clk 00:37:58]} {[%emt
00:02:40]} Nxa6 {[%clk 00:37:28]} {[%emt 00:00:34]} 16. Ke2 {[%clk 00:33:26]}
{[%emt 00:05:01]} Nd5 {[%clk 00:34:12]} {[%emt 00:03:46]} 17. Bg3 {[%clk
00:30:26]} {[%emt 00:03:30]} Rc8 {[%clk 00:30:50]} {[%emt 00:03:52]} 18. c3
{[%clk 00:28:56]} {[%emt 00:02:01]} Bf6 {[%clk 00:20:04]} {[%emt 00:11:16]} 19.
Be5 {[%clk 00:26:55]} {[%emt 00:02:30]} Bxe5 {[%clk 00:18:09]} {[%emt
00:02:26]} 20. Nxe5 {[%clk 00:27:18]} {[%emt 00:00:07]} f6 {[%clk 00:18:13]}
{[%emt 00:00:26]} 21. Nc4 {[%clk 00:24:37]} {[%emt 00:03:11]} Ke7 {[%clk
00:17:52]} {[%emt 00:00:50]} 22. Rhd1 {[%clk 00:22:19]} {[%emt 00:02:48]} Rhd8
{[%clk 00:17:42]} {[%emt 00:00:40]} 23. Ne3 {[%clk 00:17:42]} {[%emt 00:05:07]}
Nxe3 {[%clk 00:15:04]} {[%emt 00:03:09]} 24. Kxe3 {[%clk 00:16:23]} {[%emt
00:01:48]} Nc7 {[%clk 00:08:21]} {[%emt 00:07:12]} 25. Rxd8 {[%clk 00:08:24]}
{[%emt 00:08:30]} Rxd8 {[%clk 00:08:47]} {[%emt 00:00:05]} 26. Rxd8 {[%clk
00:08:47]} {[%emt 00:00:07]} Kxd8 {[%clk 00:09:14]} {[%emt 00:00:03]} 27. Nd4
{[%clk 00:06:44]} {[%emt 00:02:33]} Kd7 {[%clk 00:08:03]} {[%emt 00:01:39]} 28.
c4 {[%clk 00:06:36]} {[%emt 00:00:40]} e5 {[%clk 00:06:52]} {[%emt 00:01:41]}
29. Nf5 {[%clk 00:05:53]} {[%emt 00:01:12]} g6 {[%clk 00:07:12]} {[%emt
00:00:10]} 30. Ng3 {[%clk 00:06:03]} {[%emt 00:00:20]} f5 {[%clk 00:07:04]}
{[%emt 00:00:39]} 31. Ne2 {[%clk 00:06:03]} {[%emt 00:00:29]} Ke6 {[%clk
00:03:40]} {[%emt 00:03:54]} 32. Nc3 {[%clk 00:05:24]} {[%emt 00:01:10]} g5
{[%clk 00:03:16]} {[%emt 00:00:54]} 33. g3 {[%clk 00:04:54]} {[%emt 00:00:59]}
h5 {[%clk 00:02:06]} {[%emt 00:01:40]} 34. b4 {[%clk 00:04:04]} {[%emt
00:01:21]} Ne8 {[%clk 00:02:01]} {[%emt 00:00:35]} 35. Na4 {[%clk 00:02:58]}
{[%emt 00:01:36]} Nd6 {[%clk 00:01:42]} {[%emt 00:00:49]} 36. Nc5+ {[%clk
00:02:28]} {[%emt 00:01:00]} Kf6 {[%clk 00:01:42]} {[%emt 00:00:30]} 37. Nd7+
{[%clk 00:02:31]} {[%emt 00:00:27]} Ke6 {[%clk 00:02:08]} {[%emt 00:00:04]} 38.
Nc5+ {[%clk 00:02:56]} {[%emt 00:00:05]} Ke7 {[%clk 00:01:08]} {[%emt
00:01:29]} 39. Kd3 {[%clk 00:02:54]} {[%emt 00:00:32]} b6 {[%clk 00:01:17]}
{[%emt 00:00:22]} 40. Nb3 {[%clk 00:03:03]} {[%emt 00:00:21]} Ke6 {[%clk
00:00:49]} {[%emt 00:00:57]} 41. a4 {[%clk 00:30:21]} {[%emt 00:03:13]} Nb7
{[%clk 00:27:04]} {[%emt 00:04:18]} 42. h3 {[%clk 00:23:41]} {[%emt 00:07:07]}
Kd6 {[%clk 00:25:04]} {[%emt 00:02:30]} 43. Nd2 {[%clk 00:15:35]} {[%emt
00:08:36]} a5 {[%clk 00:18:25]} {[%emt 00:07:09]} 44. c5+ {[%clk 00:11:44]}
{[%emt 00:04:21]} bxc5 {[%clk 00:16:08]} {[%emt 00:02:48]} 45. Nc4+ {[%clk
00:11:59]} {[%emt 00:00:14]} Kd5 {[%clk 00:16:32]} {[%emt 00:00:06]} 46. bxa5
{[%clk 00:09:18]} {[%emt 00:03:11]} e4+ {[%clk 00:12:39]} {[%emt 00:04:23]} 47.
Kc3 {[%emt 00:02:44]} Nd6 {[%clk 00:10:44]} 48. Nxd6 {[%clk 00:03:06]} {[%emt
00:06:53]} Kxd6 {[%clk 00:11:09]} {[%emt 00:00:05]} 49. Kc4 {[%clk 00:03:13]}
{[%emt 00:00:23]} Kc6 {[%clk 00:11:27]} {[%emt 00:00:12]} 50. a6 {[%clk
00:03:22]} {[%emt 00:00:21]} f4 {[%clk 00:11:45]} {[%emt 00:00:13]} 51. gxf4
{[%clk 00:02:13]} {[%emt 00:01:38]} gxf4 {[%clk 00:12:09]} {[%emt 00:00:06]} 52.
a5 {[%clk 00:01:26]} {[%emt 00:01:17]} f3 {[%clk 00:08:17]} {[%emt 00:04:22]}
0-1

[Event "NJSK 2026 Jeugd A"]
[Site "Helmond, Netherlands"]
[Date "2026.04.26"]
[Round "2.1"]
[White "Ten Dam, Bram"]
[Black "Terlouw, Wouter"]
[Result "1/2-1/2"]
[TimeControl "90min/40moves + 30min + 30sec/move"]
[WhiteTitle "-"]
[BlackTitle "-"]
[WhiteFideId "40104877"]
[BlackFideId "1087401"]
[WhiteElo "2363"]
[BlackElo "2272"]

1. e4 {[%clk 01:30:57]} c5 {[%clk 01:30:50]} {[%emt 00:00:09]} 2. Nf3 {[%clk
01:31:24]} {[%emt 00:00:04]} Nc6 {[%clk 01:31:08]} {[%emt 00:00:12]} 3. d4
{[%clk 01:31:42]} {[%emt 00:00:11]} cxd4 {[%clk 01:31:31]} {[%emt 00:00:07]} 4.
Nxd4 {[%clk 01:32:08]} {[%emt 00:00:05]} e5 {[%clk 01:31:54]} {[%emt 00:00:07]}
5. Nb5 {[%clk 01:31:57]} {[%emt 00:00:41]} d6 {[%clk 01:32:17]} {[%emt
00:00:07]} 6. N1c3 {[%clk 01:31:29]} {[%emt 00:00:58]} a6 {[%clk 01:32:40]}
{[%emt 00:00:07]} 7. Na3 {[%clk 01:31:53]} {[%emt 00:00:07]} Be6 {[%clk
01:32:47]} {[%emt 00:00:22]} 8. Nc4 {[%clk 01:30:12]} {[%emt 00:02:12]} Rb8
{[%clk 01:32:36]} {[%emt 00:00:40]} 9. Ne3 {[%clk 01:26:17]} {[%emt 00:04:25]}
Nf6 {[%clk 01:32:21]} {[%emt 00:00:45]} 10. g3 {[%clk 01:23:47]} {[%emt
00:03:00]} h5 {[%clk 01:32:44]} {[%emt 00:00:06]} 11. h4 {[%clk 01:22:01]}
{[%emt 00:02:17]} g6 {[%clk 01:33:07]} {[%emt 00:00:07]} 12. Bg2 {[%clk
01:21:42]} {[%emt 00:00:49]} Bh6 {[%clk 01:33:31]} {[%emt 00:00:06]} 13. Ncd5
{[%clk 01:18:30]} {[%emt 00:03:43]} Bxd5 {[%clk 01:33:32]} {[%emt 00:00:29]} 14.
Nxd5 {[%clk 01:16:34]} {[%emt 00:02:26]} Bxc1 {[%clk 01:33:54]} {[%emt
00:00:07]} 15. Nxf6+ {[%clk 01:15:51]} {[%emt 00:01:14]} Qxf6 {[%clk 01:34:13]}
{[%emt 00:00:10]} 16. Rxc1 {[%clk 01:15:48]} {[%emt 00:00:34]} O-O {[%clk
01:30:13]} {[%emt 00:04:29]} 17. O-O {[%clk 01:13:08]} {[%emt 00:03:10]} b5
{[%clk 01:26:56]} {[%emt 00:03:48]} 18. c3 {[%clk 01:04:06]} {[%emt 00:09:31]}
Rfc8 {[%clk 01:03:19]} {[%emt 00:24:08]} 19. Qd3 {[%clk 00:56:45]} {[%emt
00:07:51]} Na5 {[%clk 01:00:11]} {[%emt 00:03:38]} 20. Rfd1 {[%clk 00:49:38]}
{[%emt 00:07:37]} Rb6 {[%clk 00:58:03]} {[%emt 00:02:38]} 21. Qd5 {[%clk
00:46:58]} {[%emt 00:03:09]} Kg7 {[%clk 00:55:45]} {[%emt 00:02:48]} 22. b3
{[%clk 00:41:02]} {[%emt 00:06:27]} Rbc6 {[%clk 00:45:00]} {[%emt 00:11:15]} 23.
Qd2 {[%clk 00:36:56]} {[%emt 00:04:36]} Nb7 {[%clk 00:36:24]} {[%emt 00:09:06]}
24. b4 {[%clk 00:27:30]} {[%emt 00:09:56]} Nd8 {[%clk 00:31:37]} {[%emt
00:05:16]} 25. Qe3 {[%clk 00:26:28]} {[%emt 00:01:32]} Ne6 {[%clk 00:28:37]}
{[%emt 00:03:30]} 26. Bh3 {[%clk 00:24:13]} {[%emt 00:02:46]} Rd8 {[%clk
00:24:57]} {[%emt 00:04:09]} 27. Rd3 {[%clk 00:21:26]} {[%emt 00:03:17]}
1/2-1/2

[Event "NJSK 2026 Jeugd A"]
[Site "Helmond, Netherlands"]
[Date "2026.04.26"]
[Round "2.2"]
[White "Smeets, Kobe"]
[Black "Madularea, David"]
[Result "1-0"]
[TimeControl "90min/40moves + 30min + 30sec/move"]
[WhiteTitle "-"]
[BlackTitle "-"]
[WhiteFideId "1063910"]
[BlackFideId "1070215"]
[WhiteElo "2315"]
[BlackElo "2261"]

1. e4 {[%clk 01:30:56]} {[%emt 00:00:02]} e5 {[%clk 01:30:54]} {[%emt
00:00:07]} 2. Nf3 {[%clk 01:31:19]} {[%emt 00:00:06]} Nc6 {[%clk 01:31:20]}
{[%emt 00:00:04]} 3. Bb5 {[%clk 01:31:38]} {[%emt 00:00:11]} a6 {[%clk
01:31:46]} {[%emt 00:00:04]} 4. Ba4 {[%clk 01:32:02]} {[%emt 00:00:06]} Nf6
{[%clk 01:32:11]} {[%emt 00:00:05]} 5. O-O {[%clk 01:32:23]} {[%emt 00:00:09]}
Be7 {[%clk 01:32:34]} {[%emt 00:00:07]} 6. d3 {[%clk 01:32:28]} {[%emt
00:00:25]} b5 {[%clk 01:32:59]} {[%emt 00:00:05]} 7. Bb3 {[%clk 01:32:53]}
{[%emt 00:00:06]} d6 {[%clk 01:33:26]} {[%emt 00:00:03]} 8. Bd2 {[%clk
01:32:24]} {[%emt 00:00:59]} Bg4 {[%clk 01:33:43]} {[%emt 00:00:12]} 9. c3
{[%clk 01:30:09]} {[%emt 00:02:45]} Na5 {[%clk 01:33:34]} {[%emt 00:00:40]} 10.
Bc2 {[%clk 01:30:27]} {[%emt 00:00:11]} c5 {[%clk 01:34:00]} {[%emt 00:00:05]}
11. h3 {[%clk 01:30:52]} {[%emt 00:00:04]} Bh5 {[%clk 01:34:25]} {[%emt
00:00:05]} 12. Re1 {[%clk 01:30:17]} {[%emt 00:01:05]} O-O {[%clk 01:34:41]}
{[%emt 00:00:13]} 13. Qe2 {[%clk 01:28:26]} {[%emt 00:02:22]} Re8 {[%clk
01:24:17]} {[%emt 00:10:54]} 14. a4 {[%clk 01:24:58]} {[%emt 00:03:59]} b4
{[%clk 01:02:20]} {[%emt 00:22:28]} 15. cxb4 {[%clk 01:08:50]} {[%emt
00:16:37]} Nc6 {[%clk 01:02:26]} {[%emt 00:00:23]} 16. g4 {[%clk 01:09:12]}
{[%emt 00:00:08]} Nxg4 {[%clk 01:02:46]} {[%emt 00:00:10]} 17. hxg4 {[%clk
01:09:25]} {[%emt 00:00:17]} Bxg4 {[%clk 01:03:10]} {[%emt 00:00:06]} 18. Be3
{[%clk 01:05:00]} {[%emt 00:04:56]} Bf8 {[%clk 00:56:56]} {[%emt 00:06:45]} 19.
Nbd2 {[%clk 00:53:33]} {[%emt 00:11:56]} Qf6 {[%clk 00:49:22]} {[%emt
00:08:04]} 20. Kg2 {[%clk 00:44:12]} {[%emt 00:09:51]} d5 {[%clk 00:35:42]}
{[%emt 00:14:10]} 21. bxc5 {[%clk 00:34:26]} {[%emt 00:10:16]} d4 {[%clk
00:35:44]} {[%emt 00:00:29]} 22. Bg5 {[%clk 00:32:42]} {[%emt 00:02:13]} Qg6
{[%clk 00:36:07]} {[%emt 00:00:07]} 23. Bh4 {[%clk 00:30:57]} {[%emt 00:02:15]}
Bxf3+ {[%clk 00:34:38]} {[%emt 00:01:59]} 24. Kxf3 {[%clk 00:31:19]} {[%emt
00:00:08]} f5 {[%clk 00:33:52]} {[%emt 00:01:16]} 25. exf5 {[%clk 00:22:59]}
{[%emt 00:08:50]} e4+ {[%clk 00:34:18]} {[%emt 00:00:03]} 26. Qxe4 {[%clk
00:21:22]} {[%emt 00:02:07]} Ne5+ {[%clk 00:34:05]} {[%emt 00:00:44]} 27. Ke2
{[%clk 00:21:25]} {[%emt 00:00:27]} Qh6 {[%clk 00:28:05]} {[%emt 00:06:30]} 28.
Kd1 {[%clk 00:16:00]} {[%emt 00:05:53]} Nf7 {[%clk 00:26:21]} {[%emt 00:02:15]}
29. Qg4 {[%clk 00:15:27]} {[%emt 00:01:03]} Rxe1+ {[%clk 00:26:33]} {[%emt
00:00:19]} 30. Kxe1 {[%clk 00:15:56]} {[%emt 00:00:01]} Ne5 {[%clk 00:26:06]}
{[%emt 00:00:56]} 31. Qe4 {[%clk 00:14:18]} {[%emt 00:02:07]} Re8 {[%clk
00:26:20]} {[%emt 00:00:17]} 32. Bb3+ {[%clk 00:14:15]} {[%emt 00:00:34]} Kh8
{[%clk 00:26:43]} {[%emt 00:00:06]} 33. Kd1 {[%clk 00:12:10]} {[%emt 00:02:36]}
Nc4 {[%clk 00:26:20]} {[%emt 00:00:54]} 34. Bxc4 {[%clk 00:09:17]} {[%emt
00:03:22]} Rxe4 {[%clk 00:26:45]} {[%emt 00:00:05]} 35. Nxe4 {[%clk 00:09:40]}
{[%emt 00:00:07]} Qxh4 {[%clk 00:27:02]} {[%emt 00:00:12]} 36. Kc2 {[%clk
00:09:20]} {[%emt 00:00:50]} a5 {[%clk 00:17:24]} {[%emt 00:10:09]} 37. b4
{[%clk 00:07:37]} {[%emt 00:02:12]} h5 {[%clk 00:14:47]} {[%emt 00:03:07]} 38.
b5 {[%clk 00:04:46]} {[%emt 00:03:21]} Bxc5 {[%clk 00:09:58]} {[%emt 00:05:19]}
39. Nxc5 {[%clk 00:05:02]} {[%emt 00:00:15]} Qxf2+ {[%clk 00:10:25]} {[%emt
00:00:03]} 40. Kb3 {[%clk 00:05:14]} {[%emt 00:00:17]} Qxf5 {[%clk 00:10:49]}
{[%emt 00:00:06]} 41. Ne6 {[%clk 00:02:58]} {[%emt 00:02:46]} Qe5 {[%clk
00:04:52]} {[%emt 00:06:28]} 42. Rb1 {[%clk 00:30:22]} {[%emt 00:03:05]} h4
{[%clk 00:26:28]} {[%emt 00:08:54]} 43. b6 {[%clk 00:29:00]} {[%emt 00:01:52]}
h3 {[%clk 00:26:06]} {[%emt 00:00:52]} 44. b7 {[%clk 00:28:14]} {[%emt
00:01:16]} h2 {[%clk 00:25:39]} {[%emt 00:00:57]} 45. Nc5 {[%clk 00:26:55]}
{[%emt 00:01:49]} Qd6 {[%clk 00:19:57]} {[%emt 00:06:12]} 46. Ka2 {[%clk
00:24:58]} {[%emt 00:02:26]} Kh7 {[%emt 00:05:39]} 47. Nd7 {[%clk 00:23:55]}
1-0

[Event "NJSK 2026 Jeugd A"]
[Site "Helmond, Netherlands"]
[Date "2026.04.26"]
[Round "2.3"]
[White "Krylov, Philippe"]
[Black "Zhu, Chenwu"]
[Result "1-0"]
[TimeControl "90min/40moves + 30min + 30sec/move"]
[WhiteTitle "-"]
[BlackTitle "-"]
[WhiteFideId "1082930"]
[BlackFideId "1080687"]
[WhiteElo "2183"]
[BlackElo "2282"]

1. d4 {[%clk 01:30:48]} {[%emt 00:00:12]} Nf6 {[%clk 01:30:42]} {[%emt
00:00:18]} 2. c4 {[%clk 01:31:08]} {[%emt 00:00:10]} e6 {[%clk 01:31:04]}
{[%emt 00:00:08]} 3. Nf3 {[%clk 01:31:06]} {[%emt 00:00:33]} b6 {[%clk
01:30:29]} {[%emt 00:01:04]} 4. a3 {[%clk 01:31:08]} {[%emt 00:00:28]} Bb7
{[%clk 01:30:37]} {[%emt 00:00:22]} 5. Nc3 {[%clk 01:31:29]} {[%emt 00:00:08]}
d5 {[%clk 01:29:48]} {[%emt 00:01:19]} 6. Bg5 {[%clk 01:31:42]} {[%emt
00:00:18]} Be7 {[%clk 01:29:31]} {[%emt 00:00:46]} 7. Qa4+ {[%clk 01:31:49]}
{[%emt 00:00:24]} Qd7 {[%clk 01:20:59]} {[%emt 00:09:02]} 8. Qc2 {[%clk
01:31:40]} {[%emt 00:00:38]} O-O {[%clk 01:19:18]} {[%emt 00:02:11]} 9. e3
{[%clk 01:30:24]} {[%emt 00:01:47]} h6 {[%clk 01:16:19]} {[%emt 00:03:29]} 10.
Bxf6 {[%clk 01:18:32]} {[%emt 00:12:22]} Bxf6 {[%clk 01:16:43]} {[%emt
00:00:06]} 11. cxd5 {[%clk 01:18:32]} {[%emt 00:00:29]} exd5 {[%clk 01:16:04]}
{[%emt 00:01:08]} 12. Be2 {[%clk 01:15:24]} {[%emt 00:03:40]} Na6 {[%clk
01:01:46]} {[%emt 00:14:48]} 13. O-O {[%clk 01:12:45]} {[%emt 00:03:07]} Rfd8
{[%clk 00:49:46]} {[%emt 00:12:31]} 14. Rfd1 {[%clk 01:10:43]} {[%emt
00:02:33]} g6 {[%clk 00:46:21]} {[%emt 00:03:55]} 15. Rac1 {[%clk 01:08:34]}
{[%emt 00:02:39]} Bg7 {[%clk 00:39:04]} {[%emt 00:07:46]} 16. b4 {[%clk
01:05:45]} {[%emt 00:03:20]} c6 {[%clk 00:36:59]} {[%emt 00:02:35]} 17. b5
{[%clk 00:53:43]} {[%emt 00:12:32]} cxb5 {[%clk 00:35:49]} {[%emt 00:01:40]} 18.
Nxb5 {[%clk 00:49:56]} {[%emt 00:04:16]} Rdc8 {[%clk 00:35:17]} {[%emt
00:01:03]} 19. Qb3 {[%clk 00:50:06]} {[%emt 00:00:19]} Rxc1 {[%clk 00:25:07]}
{[%emt 00:10:40]} 20. Rxc1 {[%clk 00:49:41]} {[%emt 00:00:55]} Rc8 {[%clk
00:25:15]} {[%emt 00:00:22]} 21. Rxc8+ {[%clk 00:40:49]} {[%emt 00:09:23]} Bxc8
{[%clk 00:25:39]} {[%emt 00:00:05]} 22. Qc2 {[%clk 00:37:32]} {[%emt 00:03:47]}
Bf8 {[%clk 00:18:36]} {[%emt 00:07:33]} 23. Nxa7 {[%clk 00:31:40]} {[%emt
00:06:22]} Qxa7 {[%clk 00:18:48]} {[%emt 00:00:18]} 24. Qxc8 {[%clk 00:32:06]}
{[%emt 00:00:05]} Nc7 {[%clk 00:15:41]} {[%emt 00:03:37]} 25. Ne5 {[%clk
00:31:42]} {[%emt 00:00:54]} Ne6 {[%clk 00:15:31]} {[%emt 00:00:39]} 26. Qd7
{[%clk 00:27:10]} {[%emt 00:05:03]} Qc7 {[%clk 00:12:02]} {[%emt 00:03:56]} 27.
a4 {[%clk 00:19:38]} {[%emt 00:08:05]} Bb4 {[%clk 00:05:51]} {[%emt 00:06:40]}
28. Qxd5 {[%clk 00:17:14]} {[%emt 00:02:54]} Bd6 {[%clk 00:04:22]} {[%emt
00:01:59]} 29. Nf3 {[%clk 00:13:52]} {[%emt 00:03:52]} Qc1+ {[%clk 00:03:10]}
{[%emt 00:01:42]} 30. Bf1 {[%clk 00:14:16]} {[%emt 00:00:06]} Qa3 {[%clk
00:02:10]} {[%emt 00:01:30]} 31. g3 {[%clk 00:12:48]} {[%emt 00:01:59]} Kg7
{[%clk 00:02:19]} {[%emt 00:00:21]} 32. Qc6 {[%clk 00:12:22]} {[%emt 00:00:55]}
Qb4 {[%clk 00:02:06]} {[%emt 00:00:43]} 33. Qb5 {[%clk 00:10:47]} {[%emt
00:02:04]} Qa3 {[%clk 00:01:14]} {[%emt 00:01:23]} 34. Qxb6 {[%clk 00:10:48]}
{[%emt 00:00:30]} g5 {[%clk 00:01:24]} {[%emt 00:00:20]} 35. d5 {[%clk
00:07:02]} {[%emt 00:04:15]} Nc7 {[%clk 00:00:46]} {[%emt 00:01:07]} 36. Nd4
{[%clk 00:06:34]} {[%emt 00:00:58]} Kg8 {[%clk 00:00:34]} {[%emt 00:00:44]} 37.
Nf5 {[%clk 00:04:39]} {[%emt 00:02:24]} Be5 {[%clk 00:00:35]} {[%emt 00:00:28]}
38. Qxh6 {[%clk 00:04:11]} {[%emt 00:00:59]} Nxd5 {[%clk 00:00:35]} {[%emt
00:00:30]} 39. Qxg5+ {[%clk 00:04:15]} {[%emt 00:00:26]} Kh7 {[%clk 00:00:53]}
{[%emt 00:00:12]} 40. Qh5+ {[%clk 00:04:32]} {[%emt 00:00:13]} 1-0